bitfinex-derivatives/quotes_SOLF0:USTF0_20241222
["timestamp","ask_amount","ask_price","bid_price","bid_amount"]
[1734826269323,3.46452869,181.53,181.43,3.44]
[1734826269524,3.46452869,181.52,181.43,3.44]
[1734826269722,3.46411263,181.51,181.43,3.44]
[1734826269927,3.46420569,181.5,181.43,3.44]
[1734826270221,3.46411263,181.51,181.43,3.44]
[1734826270424,3.46411263,181.51,181.48,2.7566]
[1734826270620,3.46411263,181.51,181.49,3.44]
[1734826270818,3.46353081,181.5,181.49,3.44]
[1734826271026,3.46411263,181.51,181.49,3.44]
[1734826272515,3.46411263,181.51,181.5,2.7563]
[1734826272922,3.46411263,181.51,181.5,6.1963]
[1734826274827,6.591,181.62,181.5,3.44]
[1734826275026,3.46025573,181.61,181.5,3.44]
[1734826275227,3.46025573,181.6,181.5,3.44]
[1734826275526,3.46025573,181.59,181.5,3.44]
[1734826275827,3.458965,181.58,181.5,3.44]
[1734826276022,6.591,181.62,181.5,3.44]
[1734826276326,2.7554,181.57,181.52,2.7559]
[1734826276726,2.7554,181.57,181.5,3.44]
[1734826276727,6.591,181.62,181.5,3.44]
[1734826276923,3.45824841,181.61,181.5,3.44]
[1734826277134,2.7551,181.58,181.53,2.7558]
[1734826277432,2.7551,181.58,181.5,3.44]
[1734826278229,29.95613853,181.72,181.48,29.95613853]
[1734826278435,3.45624542,181.66,181.52,29.95613853]
[1734826278629,29.95613853,181.76,181.53,4.3688]
[1734826278931,9.93761272,181.75,181.54,3.44]
[1734826279131,3.45641272,181.74,181.54,3.44]
[1734826279325,2.7529,181.73,181.67,2.7537]
[1734826279528,3.45641272,181.72,181.68,3.44]
[1734826279728,3.45641272,181.71,181.68,3.44]
[1734826279931,3.45641272,181.7,181.68,3.44]
[1734826280131,9.2338,181.75,181.68,3.44]
[1734826280332,3.45124299,181.74,181.68,3.44]
[1734826280631,3.45124299,181.73,181.68,3.44]
[1734826280826,3.45124299,181.72,181.68,3.44]
[1734826281029,6.4766,181.79,181.59,2.0857]
[1734826281223,29.95613853,181.76,181.6,3.44]
[1734826281426,2.753,181.72,181.66,2.7538]
[1734826281630,3.44764561,181.71,181.67,3.44]
[1734826281828,3.44764776,181.7,181.67,3.44]
[1734826282033,2.7529,181.73,181.67,3.44]
[1734826282229,3.44761741,181.72,181.67,3.44]
[1734826282430,6.4766,181.79,181.67,3.44]
[1734826282631,3.44454015,181.78,181.67,3.44]
[1734826282834,2.7528,181.74,181.68,2.7534]
[1734826283039,3.44454015,181.73,181.68,2.7534]
[1734826283237,6.19734015,181.73,181.68,2.7534]
[1734826283439,3.44454015,181.72,181.68,2.7534]
[1734826283632,6.4766,181.79,181.67,3.44]
[1734826283839,3.44167975,181.78,181.67,3.44]
[1734826284037,3.44167975,181.77,181.67,3.44]
[1734826284241,3.44167975,181.76,181.67,3.44]
[1734826284432,3.44167975,181.75,181.67,3.44]
[1734826284742,3.44167975,181.74,181.67,3.44]
[1734826284942,29.95613853,181.76,181.67,3.44]
[1734826284943,3.44167975,181.73,181.67,3.44]
[1734826285244,33.39781828,181.72,181.64,3.44]
[1734826285440,3.44167975,181.71,181.63,3.44]
[1734826285647,3.44167975,181.7,181.63,3.44]
[1734826285848,9.89887975,181.69,181.63,3.44]
[1734826286037,3.44167975,181.68,181.63,3.44]
[1734826286242,3.44167975,181.67,181.63,3.44]
[1734826286438,3.43759434,181.66,181.63,3.44]
[1734826286746,29.95613853,181.72,181.64,2.7541]
[1734826287048,3.43877146,181.71,181.64,2.7541]
[1734826287245,3.43877146,181.7,181.63,3.44]
[1734826287442,6.1647,181.75,181.63,3.44]
[1734826287647,3.44073291,181.74,181.63,3.44]
[1734826287842,3.44073114,181.73,181.63,3.44]
[1734826288042,3.44073114,181.72,181.63,3.44]
[1734826288239,3.44073114,181.71,181.63,3.44]
[1734826288437,3.44073114,181.7,181.65,2.7539]
[1734826289144,3.44073114,181.69,181.59,2.0857]
[1734826289350,3.44073114,181.68,181.6,3.4]
[1734826289550,3.44073114,181.67,181.6,3.4]
[1734826289848,3.44073114,181.66,181.61,2.7546]
[1734826290048,29.95613853,181.72,181.61,2.7546]
[1734826290049,3.44073114,181.65,181.61,2.7546]
[1734826290343,3.44715635,181.64,181.6,3.4]
[1734826290543,6.1647,181.75,181.64,2.7541]
[1734826290751,2.7534,181.69,181.65,3.4]
[1734826290950,3.44720401,181.68,181.65,3.4]
[1734826291143,3.44720401,181.67,181.65,3.4]
[1734826291344,3.44720401,181.66,181.65,3.4]
[1734826292351,6.20110401,181.66,181.65,3.4]
[1734826292552,3.44720401,181.66,181.62,3.4]
[1734826292855,3.44720401,181.65,181.62,3.4]
[1734826293149,3.44720401,181.64,181.62,3.4]
[1734826293350,2.7533,181.7,181.65,2.7539]
[1734826293547,3.46081015,181.69,181.65,2.7539]
[1734826293745,3.46081015,181.68,181.62,3.4]
[1734826293948,3.46081015,181.67,181.66,2.7538]
[1734826296142,3.46081015,181.67,181.64,2.754]
[1734826296350,3.46081015,181.66,181.64,2.754]
[1734826296555,3.46081015,181.65,181.64,2.754]
[1734826296747,3.47176486,181.65,181.64,2.754]
[1734826299253,2.7528,181.73,181.68,2.7535]
[1734826299445,3.40158225,181.72,181.69,3.4]
[1734826299652,3.40158225,181.71,181.69,3.4]
[1734826299850,3.40158225,181.7,181.69,3.4]
[1734826301449,3.40158225,181.7,181.69,6.1534]
[1734826305345,2.068,181.8,181.74,2.7525]
[1734826305554,2.068,181.8,181.75,3.4]
[1734826305555,3.40828084,181.79,181.75,3.4]
[1734826305751,2.068,181.8,181.76,3.4]
[1734826305949,3.40828905,181.79,181.77,3.4]
[1734826306250,3.40828905,181.78,181.77,3.4]
[1734826307547,3.40828905,181.78,181.74,3.4]
[1734826307754,3.40828905,181.77,181.74,3.4]
[1734826307949,6.16078905,181.76,181.74,3.4]
[1734826308152,3.40828905,181.75,181.74,3.4]
[1734826309156,3.40828905,181.75,181.74,6.1526]
[1734826310352,2.068,181.8,181.74,3.4]
[1734826310553,3.407273,181.79,181.76,2.7522]
[1734826310753,3.407273,181.78,181.76,2.7522]
[1734826310952,3.407273,181.77,181.76,2.7522]
[1734826311260,3.40725913,181.77,181.76,2.7522]
[1734826311458,6.15955913,181.77,181.74,3.4]
[1734826311761,3.40725913,181.76,181.74,3.4]
[1734826311952,3.40725913,181.75,181.74,3.4]
[1734826312452,3.40725913,181.75,181.63,6.3895]
[1734826312653,3.40725913,181.74,181.63,6.3895]
[1734826312957,3.40725913,181.73,181.64,3.4]
[1734826313157,3.40725913,181.72,181.64,3.4]
[1734826313456,3.40725913,181.71,181.64,3.4]
[1734826313659,3.40725913,181.7,181.69,2.7533]
[1734826313855,2.068,181.8,181.69,3.4]
[1734826314054,3.41260633,181.79,181.69,3.4]
[1734826314359,3.41260633,181.78,181.69,3.4]
[1734826314662,2.068,181.8,181.69,3.4]
[1734826314854,3.41503188,181.79,181.69,3.4]
[1734826315054,3.41503188,181.78,181.75,2.7524]
[1734826315255,3.41503188,181.77,181.76,3.4]
[1734826315649,3.41503188,181.77,181.76,6.1523]
[1734826315855,10.24509561,181.86,181.76,3.4]
[1734826315856,2.7509,181.86,181.76,3.4]
[1734826316051,2.106,181.87,181.76,3.4]
[1734826316354,4.8567,181.87,181.76,3.4]
[1734826317253,2.106,181.87,181.76,3.4]
[1734826318459,2.106,181.87,181.84,2.751]
[1734826318661,2.106,181.87,181.85,3.4]
[1734826319160,29.95613853,181.96,181.85,3.4]
[1734826319361,2.7499,181.92,181.87,2.7506]
[1734826319757,4.2541,181.95,181.85,3.4]
[1734826319960,4.2541,181.95,181.85,3.34]
[1734826320759,14.20803096,181.95,181.85,3.34]
[1734826321461,4.2541,181.95,181.85,3.34]
[1734826322167,14.20816493,181.95,181.85,3.34]
[1734826322860,4.2541,181.95,181.85,3.34]
[1734826323055,14.20966049,181.95,181.85,3.34]
[1734826323260,14.20838902,181.95,181.85,3.34]
[1734826323859,2.7499,181.92,181.85,3.34]
[1734826324057,4.2541,181.95,181.85,3.34]
[1734826324560,4.2541,181.95,181.74,6.3604]
[1734826324762,4.2541,181.95,181.75,3.34]
[1734826325359,30.78052467,181.95,181.75,3.34]
[1734826325562,46.53613853,181.92,181.74,2.1093]
[1734826325759,29.95613853,181.88,181.75,3.34]
[1734826326063,2.7517,181.81,181.75,3.34]
[1734826326866,2.7517,181.81,181.76,2.7523]
[1734826327261,2.7517,181.81,181.75,3.34]
[1734826327262,4.4555,181.86,181.75,3.34]
[1734826328263,2.7511,181.84,181.79,2.7518]
[1734826328469,2.7511,181.84,181.8,3.34]
[1734826328663,4.4555,181.86,181.8,3.34]
[1734826330466,2.7514,181.83,181.8,3.34]
[1734826334872,14.28055022,181.95,181.8,3.34]
[1734826335079,4.29,181.91,181.8,3.34]
[1734826335473,2.7504,181.89,181.83,2.7512]
[1734826335777,4.29,181.91,181.8,3.34]
[1734826336178,2.7503,181.9,181.85,2.7509]
[1734826336487,2.7503,181.9,181.86,3.34]
[1734826337282,2.7506,181.88,181.84,2.7511]
[1734826337482,2.7506,181.88,181.77,6.427]
[1734826337483,4.29,181.91,181.85,3.34]
[1734826337876,2.7508,181.86,181.85,3.34]
[1734826338376,4.29,181.91,181.85,3.34]
[1734826338580,4.29,181.91,181.86,3.34]
[1734826339377,4.9703,181.91,181.87,2.7507]
[1734826339579,2.7501,181.91,181.87,2.7507]
[1734826343282,2.1443,181.94,181.77,6.427]
[1734826343579,2.1443,181.94,181.78,3.34]
[1734826343788,2.1443,181.94,181.77,6.427]
[1734826343789,2.1443,181.94,181.79,3.34]
[1734826344389,2.7509,181.86,181.79,3.34]
[1734826344582,3.34,181.9,181.77,2.1178]
[1734826344782,4.286,181.85,181.78,3.34]
[1734826345791,4.286,181.85,181.78,6.092]
[1734826345792,2.7515,181.82,181.78,6.092]
[1734826345985,4.286,181.85,181.78,3.34]
[1734826346193,2.7519,181.8,181.78,3.34]
[1734826347187,4.286,181.85,181.78,3.34]
[1734826348394,2.7517,181.81,181.78,3.34]
[1734826348887,2.7516,181.81,181.78,3.34]
[1734826350696,4.286,181.85,181.78,3.34]
[1734826351295,2.7516,181.82,181.78,3.34]
[1734826351793,4.286,181.85,181.78,3.34]
[1734826352001,4.286,181.85,181.71,2.0437]
[1734826352199,35.33033853,181.84,181.64,179.54939206]
[1734826352401,35.33033853,181.84,181.68,3.24]
[1734826353501,2.1342,181.84,181.68,3.24]
[1734826353901,4.286,181.85,181.68,33.19613853]
[1734826354295,7.0371,181.85,181.8,2.7516]
[1734826354493,2.1342,181.9,181.81,3.24]
[1734826354694,2.7512,181.84,181.81,3.24]
[1734826354997,6.4307,181.9,181.81,3.24]
[1734826355494,2.7512,181.84,181.81,3.24]
[1734826355998,2.7514,181.82,181.81,3.24]
[1734826356200,3.24,181.89,181.79,3.24]
[1734826356791,6.4307,181.9,181.79,3.24]
[1734826357703,2.751,181.86,181.81,2.7514]
[1734826358302,6.4307,181.9,181.79,3.24]
[1734826358496,6.4307,181.9,181.81,2.7516]
[1734826358704,10.71264263,181.95,181.79,3.24]
[1734826358899,1.09920307,181.95,181.8,4.3278]
[1734826359392,1.09920307,181.95,181.81,2.1085]
[1734826359597,2.7503,181.9,181.85,2.7508]
[1734826359793,1.09920307,181.95,181.86,3.52]
[1734826360596,2.7504,181.89,181.86,3.52]
[1734826361908,1.09920307,181.95,181.86,3.52]
[1734826362101,1.09920307,181.95,181.86,6.2708]
[1734826362305,1.09920307,181.95,181.86,3.52]
[1734826362807,4.4127,181.96,181.86,3.52]
[1734826363410,2.7498,181.93,181.88,2.7505]
[1734826363604,35.78948019,182.01,181.86,3.52]
[1734826363805,36.62648019,182.01,181.86,3.52]
[1734826364104,2.7493,181.97,181.91,2.75]
[1734826364304,2.7493,181.97,181.92,3.52]
[1734826364505,6.14882793,182.01,181.92,3.52]
[1734826364699,2.7498,181.93,181.92,3.52]
[1734826366706,3.52,181.99,181.86,2.7508]
[1734826366903,2.7502,181.9,181.87,3.52]
[1734826367103,3.52,181.99,181.88,3.52]
[1734826367303,2.75,181.92,181.88,3.52]
[1734826367507,29.95613853,181.98,181.86,3.52]
[1734826367915,9.60750806,181.97,181.86,3.52]
[1734826368510,29.95613853,181.98,181.86,3.52]
[1734826368909,2.7495,181.96,181.89,2.7504]
[1734826369107,7.61941306,181.99,181.86,3.52]
[1734826369516,67.10413246,182.01,181.86,3.52]
[1734826369711,6.14882793,182.01,181.86,3.52]
[1734826370016,24.81686375,182.01,181.86,3.52]
[1734826370214,15.7544947,182.01,181.86,3.52]
[1734826370416,2.7497,181.94,181.89,2.7503]
[1734826371613,24.81489283,182.01,181.87,2.7506]
[1734826372217,2.7499,181.93,181.87,2.7506]
[1734826372912,2.7492,181.97,181.86,3.52]
[1734826373111,24.81489283,182.01,181.86,3.52]
[1734826373313,1.01071512,182.0,181.86,3.52]
[1734826373611,29.95613853,181.98,181.81,2.1085]
[1734826373815,29.95613853,181.94,181.8,2.7517]
[1734826374013,6.2538,181.93,181.79,3.52]
[1734826374210,2.7516,181.82,181.79,3.52]
[1734826374418,3.52,181.92,181.79,3.52]
[1734826374419,29.95613853,181.9,181.79,3.52]
[1734826374720,29.95613853,181.9,181.75,3.52]
[1734826374721,19.6808333,181.89,181.75,3.52]
[1734826374920,29.95613853,181.86,181.68,67.38640453]
[1734826375215,16.20760858,181.85,181.68,62.99410453]
[1734826375417,29.95613853,181.82,181.68,60.95530453]
[1734826375615,11.16725095,181.81,181.68,60.95530453]
[1734826375918,29.95613853,181.78,181.68,60.95530453]
[1734826376117,2.7537,181.67,181.66,3.52]
[1734826376415,3.52,181.74,181.63,3.52]
[1734826376616,2.1391,181.73,181.63,3.52]
[1734826376822,2.7541,181.65,181.58,60.95530453]
[1734826377322,3.52,181.69,181.53,2.2026]
[1734826377624,2.0993,181.64,181.53,5.7226]
[1734826377811,2.7548,181.6,181.53,5.7226]
[1734826378011,2.0993,181.64,181.53,2.2026]
[1734826378211,2.0993,181.64,181.54,3.52]
[1734826378816,2.0993,181.64,181.54,6.2756]
[1734826379021,2.1387,181.68,181.54,3.52]
[1734826379226,2.7542,181.64,181.54,3.52]
[1734826379425,2.1387,181.68,181.54,3.52]
[1734826379817,2.7542,181.64,181.54,3.52]
[1734826380114,29.95613853,181.66,181.51,3.52]
[1734826380316,2.7554,181.56,181.51,3.52]
[1734826380516,3.52,181.63,181.5,2.0587]
[1734826380716,4.3152,181.62,181.5,5.5787]
[1734826380918,4.3152,181.62,181.44,2.0734]
[1734826381124,4.3152,181.62,181.45,3.52]
[1734826381326,34.27133853,181.62,181.45,5.6044]
[1734826381725,2.7563,181.5,181.45,5.6044]
[1734826381925,3.52,181.56,181.45,2.0844]
[1734826382121,29.95613853,181.58,181.44,2.0734]
[1734826382122,5.6828,181.55,181.44,3.52]
[1734826382327,2.1628,181.55,181.44,3.52]
[1734826382722,3.52,181.61,181.44,3.52]
[1734826382923,29.95613853,181.57,181.44,3.52]
[1734826383133,3.8,181.56,181.41,4.3407]
[1734826383331,2.7571,181.45,181.41,2.1131]
[1734826383734,29.95613853,181.57,181.41,2.1131]
[1734826384830,2.7571,181.45,181.35,2.7584]
[1734826385038,2.1628,181.61,181.36,3.8]
[1734826385331,2.7564,181.5,181.39,2.7579]
[1734826385533,29.95613853,181.55,181.36,3.8]
[1734826385737,3.8,181.54,181.36,3.8]
[1734826385931,3.8,181.54,181.35,2.2086]
[1734826385932,3.8,181.54,181.37,3.8]
[1734826386838,29.95613853,181.51,181.37,3.8]
[1734826387040,4.194,181.5,181.35,2.2086]
[1734826387240,2.7571,181.45,181.35,2.2086]
[1734826387539,29.95613853,181.47,181.35,2.2086]
[1734826387740,29.95613853,181.47,181.34,3.8]
[1734826388237,29.95613853,181.47,181.29,2.1659]
[1734826388441,29.95613853,181.47,181.31,3.8]
[1734826388442,1.01367512,181.46,181.31,3.8]
[1734826388632,2.7585,181.36,181.31,3.8]
[1734826388844,33.75613853,181.43,181.31,3.8]
[1734826389137,2.7584,181.37,181.31,3.8]
[1734826389538,3.8,181.45,181.31,3.8]
[1734826389733,6.4034,181.5,181.31,3.8]
[1734826390247,29.95613853,181.49,181.32,6.5589]
[1734826390443,3.8,181.48,181.32,3.8]
[1734826390635,29.95613853,181.45,181.29,2.1659]
[1734826390845,29.95613853,181.41,181.29,2.1659]
[1734826391041,6.4006,181.4,181.29,2.1659]
[1734826391943,34.01613853,181.45,181.3,2.7593]
[1734826392141,34.01613853,181.45,181.29,2.1659]
[1734826392347,4.287,181.44,181.29,2.1659]
[1734826393345,2.7578,181.41,181.33,2.7588]
[1734826393547,4.287,181.44,181.34,4.06]
[1734826394843,2.7579,181.4,181.34,4.06]
[1734826395044,4.287,181.44,181.34,4.06]
[1734826396036,4.287,181.44,181.3,4.06]
[1734826396238,4.06,181.43,181.3,4.06]
[1734826396435,2.7578,181.41,181.3,4.06]
[1734826396647,29.95613853,181.49,181.3,4.06]
[1734826397050,29.95613853,181.49,181.31,4.06]
[1734826397441,1.01356271,181.48,181.32,4.06]
[1734826397943,2.7583,181.38,181.32,4.06]
[1734826398137,4.06,181.45,181.29,2.1659]
[1734826398337,2.7582,181.38,181.31,2.7592]
[1734826398850,2.7578,181.4,181.3,4.06]
[1734826399044,2.1875,181.43,181.3,4.06]
[1734826399348,2.7589,181.33,181.3,4.06]
[1734826399542,4.06,181.4,181.27,4.06]
[1734826399742,1.01408019,181.39,181.26,4.06]
[1734826399950,4.06,181.4,181.26,4.06]
[1734826400146,29.95613853,181.37,181.22,2.2076]
[1734826400347,29.95613853,181.37,181.22,6.2676]
[1734826400649,1.01427177,181.36,181.22,6.2676]
[1734826400842,4.06,181.36,181.22,2.2076]
[1734826401046,2.7601,181.26,181.22,6.2676]
[1734826401243,4.06,181.36,181.22,6.2676]
[1734826401446,6.5221,181.34,181.22,6.2676]
[1734826402352,2.7601,181.25,181.22,4.06]
[1734826403147,2.7599,181.27,181.22,4.06]
[1734826403355,1.01438636,181.33,181.22,4.06]
[1734826403754,2.7595,181.29,181.22,6.8204]
[1734826403956,1.01438636,181.33,181.22,6.8204]
[1734826404351,1.01438636,181.33,181.22,4.06]
[1734826405052,2.7593,181.31,181.24,2.7602]
[1734826405660,3.77338636,181.33,181.26,2.7599]
[1734826405859,1.01438636,181.33,181.27,4.08]
[1734826406060,1.01438636,181.33,181.26,4.08]
[1734826406357,6.295,181.39,181.26,4.08]
[1734826406858,1.0141078,181.38,181.26,4.08]
[1734826407259,2.7596,181.29,181.26,4.08]
[1734826407459,6.295,181.39,181.26,4.08]
[1734826407651,1.01416201,181.38,181.26,4.08]
[1734826407856,6.295,181.39,181.26,4.08]
[1734826408153,6.295,181.39,181.26,6.8399]
[1734826408954,6.295,181.39,181.26,4.08]
[1734826409161,29.95613853,181.37,181.26,4.08]
[1734826409955,2.215,181.39,181.26,4.08]
[1734826410155,2.215,181.39,181.27,2.0848]
[1734826410562,2.7585,181.36,181.27,2.0848]
[1734826410764,2.215,181.39,181.27,2.0848]
[1734826410961,16.58,181.28,181.07,60.95530453]
[1734826411160,29.95613853,181.17,181.07,60.95530453]
[1734826411369,29.95613853,181.17,181.06,60.95530453]
[1734826411869,2.7624,181.1,181.07,4.08]
[1734826412061,29.95613853,181.17,181.07,4.08]
[1734826412376,2.7628,181.07,181.04,147.93253326]
[1734826412568,2.7628,181.07,181.05,80.02351995]
[1734826412763,29.95613853,181.11,181.0,4.08]
[1734826412968,2.7631,181.05,181.0,4.08]
[1734826413166,29.95613853,181.11,181.0,4.08]
[1734826414673,2.7627,181.08,181.0,4.08]
[1734826415368,29.95613853,181.11,181.01,4.08]
[1734826415573,29.95613853,181.06,180.97,4.08]
[1734826415769,29.95613853,181.06,180.96,1.26154226]
[1734826416070,29.95613853,181.06,180.79,29.95613853]
[1734826416071,29.95613853,181.01,180.79,29.95613853]
[1734826416272,29.95613853,181.01,180.94,4.08]
[1734826416475,2.7643,180.98,180.94,4.08]
[1734826417174,2.7644,180.97,180.94,4.08]
[1734826417366,29.95613853,181.01,180.87,4.4195]
[1734826417571,29.95613853,181.01,180.88,4.08]
[1734826417765,2.7646,180.96,180.88,4.08]
[1734826419270,29.95613853,181.01,180.88,4.08]
[1734826419870,2.7648,180.95,180.87,4.4195]
[1734826420069,2.7648,180.95,180.88,4.08]
[1734826420266,2.7648,180.95,180.87,4.4195]
[1734826420473,2.7648,180.95,180.88,3.84]
[1734826420674,2.7649,180.94,180.87,4.4195]
[1734826420875,2.7649,180.94,180.88,3.84]
[1734826421073,29.95613853,180.96,180.88,3.84]
[1734826421380,32.72063853,180.96,180.88,6.6056]
[1734826421576,29.95613853,180.96,180.88,3.84]
[1734826421875,29.95613853,180.92,180.85,3.84]
[1734826422079,29.95613853,180.92,180.84,3.84]
[1734826422376,29.95613853,180.92,180.83,2.2123]
[1734826422577,2.7657,180.89,180.83,2.2123]
[1734826422877,29.95613853,180.92,180.83,2.2123]
[1734826423379,2.7656,180.89,180.83,2.2123]
[1734826423878,29.95613853,180.92,180.83,2.2123]
[1734826424070,2.7651,180.93,180.83,2.2123]
[1734826425180,2.7647,180.95,180.83,2.2123]
[1734826425978,29.95613853,180.96,180.87,2.7658]
[1734826425979,2.7648,180.94,180.87,2.7658]
[1734826426178,29.95613853,181.0,180.88,3.84]
[1734826426378,29.95613853,181.0,180.89,7.9309]
[1734826426574,2.7643,180.98,180.91,2.7652]
[1734826427379,29.95613853,181.0,180.89,4.0909]
[1734826427674,29.95613853,181.0,180.9,3.84]
[1734826428179,2.7649,180.94,180.9,3.84]
[1734826430370,29.95613853,180.96,180.9,3.84]
[1734826430576,2.7653,180.92,180.9,3.84]
[1734826430777,29.95613853,181.0,180.9,3.84]
[1734826432271,29.95613853,181.04,180.9,3.84]
[1734826432478,29.95613853,181.04,180.91,4.06]
[1734826432882,2.764,181.0,180.93,2.765]
[1734826433076,29.95613853,181.04,180.91,4.06]
[1734826433278,29.95613853,181.0,180.83,2.2123]
[1734826433479,2.7644,180.97,180.9,2.7654]
[1734826433678,29.95613853,181.0,180.91,3.84]
[1734826434078,2.7643,180.98,180.91,3.84]
[1734826434279,29.95613853,181.0,180.91,6.6052]
[1734826434478,29.95613853,181.0,180.91,3.84]
[1734826434673,29.95613853,181.04,180.91,3.84]
[1734826435080,29.95613853,181.04,180.92,1.9927]
[1734826435277,2.764,181.0,180.94,2.7648]
[1734826435781,29.95613853,181.04,180.92,0.17580631]
[1734826436681,29.95613853,181.04,180.93,3.84]
[1734826437473,2.7645,180.97,180.93,3.84]
[1734826437677,29.95613853,181.0,180.84,4.06]
[1734826437879,29.95613853,181.0,180.85,3.84]
[1734826438083,2.7651,180.93,180.87,2.7659]
[1734826438478,2.7651,180.93,180.88,3.84]
[1734826439480,2.7653,180.91,180.89,3.84]
[1734826439681,29.95613853,180.96,180.84,4.06]
[1734826439884,2.7656,180.89,180.85,3.84]
[1734826440079,29.95613853,180.96,180.85,3.84]
[1734826442287,1.9429,181.0,180.85,3.84]
[1734826442476,1.9429,181.0,180.89,2.7656]
[1734826442682,1.9429,181.0,180.9,3.84]
[1734826442989,1.9429,181.0,180.91,3.84]
[1734826443288,29.95613853,181.01,180.91,3.84]
[1734826443485,62.52769079,181.05,180.91,3.84]
[1734826443691,62.52769079,181.05,180.93,2.7648]
[1734826443886,62.52769079,181.05,180.92,2.1166]
[1734826444490,32.05003853,181.05,180.92,2.1166]
[1734826445084,2.7639,181.01,180.95,2.7647]
[1734826445390,29.95613853,181.05,180.96,3.84]
[1734826445793,30.47765226,181.07,180.96,3.84]
[1734826446087,33.24055226,181.07,181.0,2.7639]
[1734826446291,30.47765226,181.07,181.01,3.84]
[1734826446684,33.24065226,181.07,181.01,3.84]
[1734826446890,30.47765226,181.07,181.01,3.84]
[1734826447089,30.47765226,181.07,181.03,2.7633]
[1734826447393,30.47765226,181.08,181.03,2.7633]
[1734826447591,30.47765226,181.08,181.01,3.84]
[1734826448295,22.8582392,181.08,181.03,2.7633]
[1734826448493,30.47765226,181.11,181.01,3.84]
[1734826448696,30.47765226,181.11,180.97,4.2691]
[1734826448887,29.95613853,181.09,180.98,3.84]
[1734826450590,7.61941306,181.1,180.98,3.84]
[1734826450790,2.7627,181.08,181.02,2.7635]
[1734826450993,2.7627,181.08,181.03,3.8]
[1734826451896,2.7628,181.07,181.03,3.8]
[1734826453698,2.7633,181.04,180.99,2.764]
[1734826453893,2.7633,181.04,181.0,3.8]
[1734826454298,7.61941306,181.11,181.01,3.8]
[1734826454299,30.47765226,181.11,181.01,3.8]
[1734826454488,29.95613853,181.08,180.97,4.2691]
[1734826454694,29.95613853,181.08,180.98,3.8]
[1734826454995,2.7631,181.05,180.99,2.764]
[1734826455586,2.7631,181.05,180.98,3.8]
[1734826455587,29.95613853,181.08,180.98,3.8]
[1734826455992,29.95613853,181.08,180.92,2.1166]
[1734826455993,29.95613853,181.08,180.99,3.8]
[1734826456292,2.7631,181.05,180.99,3.8]
[1734826456594,29.95613853,181.08,180.99,3.8]
[1734826456897,2.7636,181.02,180.92,2.1166]
[1734826457099,2.7636,181.02,180.93,3.8]
[1734826457393,1.9525,181.07,180.92,2.1166]
[1734826457692,29.95613853,181.03,180.93,3.8]
[1734826457888,29.95613853,181.03,180.89,57.48]
[1734826458096,29.95613853,181.03,180.9,3.8]
[1734826458494,2.7648,180.95,180.9,3.8]
[1734826458799,29.95613853,181.03,180.9,3.8]
[1734826459494,11.74681306,181.06,180.9,3.8]
[1734826460097,7.61941306,181.06,180.9,3.8]
[1734826460399,31.90863853,181.07,180.9,3.8]
[1734826460594,2.7634,181.04,180.9,3.8]
[1734826460991,1.9525,181.07,180.91,1.00822273]